[Event "*** Titled Tuesday Blitz"]
[Site "Chess.com"]
[Date "2020.10.20"]
[Round "11"]
[White "GukeshDommaraju"]
[Black "JonahWillow"]
[Result "1-0"]
[WhiteElo "2818"]
[BlackElo "2641"]
[TimeControl "180+1"]
[EndTime "12:07:34 PDT"]
[Termination "GukeshDommaraju won by resignation"]

1. d4 {[%clk 0:03:00.9]} 1... Nf6 {[%clk 0:02:57.9]} 2. Nf3 {[%clk 0:03:01]}
2... e6 {[%clk 0:02:57]} 3. Bf4 {[%clk 0:02:58.1]} 3... c5 {[%clk 0:02:57]} 4.
e3 {[%clk 0:02:57.9]} 4... cxd4 {[%clk 0:02:57.3]} 5. exd4 {[%clk 0:02:58.1]}
5... b6 {[%clk 0:02:58.2]} 6. Nbd2 {[%clk 0:02:57.2]} 6... Bb7 {[%clk
0:02:57.9]} 7. Bd3 {[%clk 0:02:57.3]} 7... Be7 {[%clk 0:02:58]} 8. O-O {[%clk
0:02:57.4]} 8... O-O {[%clk 0:02:58.1]} 9. Qe2 {[%clk 0:02:57.7]} 9... a6 {[%clk
0:02:57.9]} 10. h3 {[%clk 0:02:57.2]} 10... d6 {[%clk 0:02:57.3]} 11. a4 {[%clk
0:02:56.6]} 11... Re8 {[%clk 0:02:52.7]} 12. c3 {[%clk 0:02:55.9]} 12... Bf8
{[%clk 0:02:51.4]} 13. Rfe1 {[%clk 0:02:55.5]} 13... Nbd7 {[%clk 0:02:51.1]} 14.
Bh2 {[%clk 0:02:29]} 14... Qc7 {[%clk 0:02:49.5]} 15. a5 {[%clk 0:02:15]} 15...
bxa5 {[%clk 0:02:10.7]} 16. Nc4 {[%clk 0:02:12.7]} 16... e5 {[%clk 0:02:11.1]}
17. dxe5 {[%clk 0:02:08.5]} 17... dxe5 {[%clk 0:02:12]} 18. Nxa5 {[%clk
0:01:55.9]} 18... Bxf3 {[%clk 0:01:27.6]} 19. Qxf3 {[%clk 0:01:54.2]} 19... Nc5
{[%clk 0:01:20.6]} 20. Bc2 {[%clk 0:01:41]} 20... Rab8 {[%clk 0:00:35.5]} 21. b4
{[%clk 0:01:36.2]} 21... Ncd7 {[%clk 0:00:35.3]} 22. Bb3 {[%clk 0:01:31.2]}
22... Rbc8 {[%clk 0:00:31.7]} 23. Rac1 {[%clk 0:01:27.4]} 23... Nb6 {[%clk
0:00:27.8]} 24. Qf5 {[%clk 0:01:22.1]} 24... Qd7 {[%clk 0:00:24.3]} 25. Qxd7
{[%clk 0:01:11]} 25... Nfxd7 {[%clk 0:00:25.2]} 26. Bg3 {[%clk 0:01:08.9]} 26...
Bd6 {[%clk 0:00:21.5]} 27. Red1 {[%clk 0:01:07.8]} 27... Bb8 {[%clk 0:00:20.3]}
28. c4 {[%clk 0:01:07.6]} 28... Nf6 {[%clk 0:00:17.4]} 29. c5 {[%clk 0:01:06.8]}
29... Nbd7 {[%clk 0:00:17.2]} 30. Ba4 {[%clk 0:01:03.3]} 30... Red8 {[%clk
0:00:10.1]} 31. Nb7 {[%clk 0:01:01.4]} 1-0

[Event "*** Titled Tuesday Blitz"]
[Site "Chess.com"]
[Date "2020.10.20"]
[Round "11"]
[White "gumimis"]
[Black "JoliyRoger"]
[Result "1-0"]
[WhiteElo "2294"]
[BlackElo "2414"]
[TimeControl "180+1"]
[EndTime "12:07:35 PDT"]
[Termination "gumimis won on time"]

1. e4 {[%clk 0:02:59.7]} 1... c6 {[%clk 0:01:28.6]} 2. d4 {[%clk 0:02:59.2]}
2... d5 {[%clk 0:01:27.1]} 3. Nc3 {[%clk 0:02:59.2]} 3... h6 {[%clk 0:01:26.8]}
4. Nf3 {[%clk 0:02:53.9]} 4... Bg4 {[%clk 0:01:26.1]} 5. Be3 {[%clk 0:02:51]}
5... Nf6 {[%clk 0:01:25.2]} 6. h3 {[%clk 0:02:44.8]} 6... Bxf3 {[%clk
0:01:16.9]} 7. Qxf3 {[%clk 0:02:45]} 7... e6 {[%clk 0:01:17.5]} 8. e5 {[%clk
0:02:44.3]} 8... Nfd7 {[%clk 0:01:17.7]} 9. Bd3 {[%clk 0:02:41.8]} 9... c5
{[%clk 0:01:17.1]} 10. O-O {[%clk 0:02:35.2]} 10... cxd4 {[%clk 0:01:13]} 11.
Bxd4 {[%clk 0:02:35.3]} 11... Nc6 {[%clk 0:01:13.9]} 12. Qe3 {[%clk 0:02:27.6]}
12... Qb8 {[%clk 0:01:10.3]} 13. Rae1 {[%clk 0:02:22.4]} 13... a6 {[%clk
0:01:05.3]} 14. Kh1 {[%clk 0:02:18.5]} 14... b5 {[%clk 0:00:40.7]} 15. a3 {[%clk
0:02:08.6]} 15... Nxd4 {[%clk 0:00:38]} 16. Qxd4 {[%clk 0:02:08]} 16... Qb6
{[%clk 0:00:38.6]} 17. Qg4 {[%clk 0:02:03.7]} 17... h5 {[%clk 0:00:37.7]} 18.
Qg3 {[%clk 0:02:02.5]} 18... Qd4 {[%clk 0:00:22.6]} 19. f4 {[%clk 0:01:58.9]}
19... h4 {[%clk 0:00:18.6]} 20. Qg4 {[%clk 0:01:56.7]} 20... g6 {[%clk
0:00:17.6]} 21. Bxg6 {[%clk 0:01:32.8]} 21... Nc5 {[%clk 0:00:15.2]} 22. Bh5
{[%clk 0:01:25.4]} 22... O-O-O {[%clk 0:00:12.8]} 23. Bxf7 {[%clk 0:01:24.7]}
23... Kb7 {[%clk 0:00:09.5]} 24. Bxe6 {[%clk 0:01:23.3]} 24... Nxe6 {[%clk
0:00:08.7]} 25. Qxe6 {[%clk 0:01:23.7]} 25... Bc5 {[%clk 0:00:09.6]} 26. Rd1
{[%clk 0:01:14]} 26... Qc4 {[%clk 0:00:09.3]} 27. Nxd5 {[%clk 0:01:08.4]} 27...
Rxd5 {[%clk 0:00:08.7]} 28. Qxd5+ {[%clk 0:01:08.2]} 28... Qxd5 {[%clk
0:00:04.1]} 29. Rxd5 {[%clk 0:01:09.1]} 29... Kc6 {[%clk 0:00:04.4]} 30. Rxc5+
{[%clk 0:01:06.4]} 1-0

[Event "*** Titled Tuesday Blitz"]
[Site "Chess.com"]
[Date "2020.10.20"]
[Round "11"]
[White "mamey78"]
[Black "Vanina1989"]
[Result "0-1"]
[WhiteElo "2409"]
[BlackElo "2638"]
[TimeControl "180+1"]
[EndTime "12:07:38 PDT"]
[Termination "Vanina1989 won by resignation"]

1. e4 {[%clk 0:03:00.9]} 1... c6 {[%clk 0:03:00.2]} 2. d4 {[%clk 0:03:00]} 2...
d5 {[%clk 0:03:00.6]} 3. exd5 {[%clk 0:03:00.9]} 3... cxd5 {[%clk 0:03:00.8]} 4.
c4 {[%clk 0:03:01.5]} 4... Nc6 {[%clk 0:03:01.2]} 5. Nc3 {[%clk 0:03:01.6]} 5...
Nf6 {[%clk 0:03:01.7]} 6. Nf3 {[%clk 0:03:01.6]} 6... g6 {[%clk 0:03:02.1]} 7.
Bg5 {[%clk 0:02:56.8]} 7... Bg7 {[%clk 0:03:02.1]} 8. Rc1 {[%clk 0:02:53.4]}
8... O-O {[%clk 0:03:01.8]} 9. h3 {[%clk 0:02:47.5]} 9... Bf5 {[%clk 0:02:58.3]}
10. c5 {[%clk 0:02:43.5]} 10... Ne4 {[%clk 0:02:57.5]} 11. Be3 {[%clk
0:02:38.2]} 11... Qa5 {[%clk 0:02:56.7]} 12. Bd3 {[%clk 0:02:31.8]} 12... Nb4
{[%clk 0:02:53.7]} 13. Bb1 {[%clk 0:01:31.3]} 13... Nxa2 {[%clk 0:02:27]} 14.
Bxa2 {[%clk 0:01:26.4]} 14... Nxc3 {[%clk 0:02:26.6]} 15. bxc3 {[%clk
0:01:19.5]} 15... Qxa2 {[%clk 0:02:26.7]} 16. O-O {[%clk 0:01:20.4]} 16... Qa6
{[%clk 0:02:24.4]} 17. Re1 {[%clk 0:01:19.2]} 17... Rfe8 {[%clk 0:02:11.6]} 18.
Qb3 {[%clk 0:01:08.6]} 18... Qc6 {[%clk 0:01:47]} 19. Bg5 {[%clk 0:00:57.4]}
19... Bf6 {[%clk 0:01:31.8]} 20. Bf4 {[%clk 0:00:44.3]} 20... a5 {[%clk
0:01:18.7]} 21. Ne5 {[%clk 0:00:43.1]} 21... Bxe5 {[%clk 0:01:18.4]} 22. Rxe5
{[%clk 0:00:43.7]} 22... a4 {[%clk 0:01:14.2]} 23. Qa3 {[%clk 0:00:43.2]} 23...
Qb5 {[%clk 0:01:07.2]} 24. Rce1 {[%clk 0:00:40.2]} 24... Qb3 {[%clk 0:01:03.8]}
25. Qc1 {[%clk 0:00:38.5]} 25... a3 {[%clk 0:01:02.5]} 26. Bh6 {[%clk
0:00:17.8]} 26... a2 {[%clk 0:00:52.3]} 27. Kh2 {[%clk 0:00:16.5]} 27... a1=Q
{[%clk 0:00:50.3]} 28. Qg5 {[%clk 0:00:13.4]} 28... Qxe1 {[%clk 0:00:46.4]} 29.
Rxe1 {[%clk 0:00:11.7]} 0-1

[Event "*** Titled Tuesday Blitz"]
[Site "Chess.com"]
[Date "2020.10.20"]
[Round "11"]
[White "giantslayer83"]
[Black "Iskusnyh"]
[Result "1-0"]
[WhiteElo "2708"]
[BlackElo "2557"]
[TimeControl "180+1"]
[EndTime "12:07:39 PDT"]
[Termination "giantslayer83 won on time"]

1. d4 {[%clk 0:03:00.9]} 1... d5 {[%clk 0:02:59.3]} 2. c4 {[%clk 0:03:00.7]}
2... c6 {[%clk 0:02:58.8]} 3. Nf3 {[%clk 0:03:00.4]} 3... Nf6 {[%clk 0:02:59.2]}
4. Nc3 {[%clk 0:03:00.3]} 4... a6 {[%clk 0:02:59]} 5. a4 {[%clk 0:02:57.2]} 5...
e6 {[%clk 0:02:57.5]} 6. Bg5 {[%clk 0:02:56.9]} 6... a5 {[%clk 0:02:56.2]} 7. e3
{[%clk 0:02:55.8]} 7... Be7 {[%clk 0:02:54.6]} 8. Bd3 {[%clk 0:02:50.7]} 8...
Na6 {[%clk 0:02:54.3]} 9. O-O {[%clk 0:02:50.8]} 9... Nb4 {[%clk 0:02:53.8]} 10.
e4 {[%clk 0:02:49.3]} 10... Nxd3 {[%clk 0:02:11.2]} 11. Qxd3 {[%clk 0:02:47.3]}
11... dxe4 {[%clk 0:02:07.8]} 12. Nxe4 {[%clk 0:02:46.7]} 12... Nxe4 {[%clk
0:02:07.5]} 13. Bxe7 {[%clk 0:02:45.7]} 13... Nxf2 {[%clk 0:02:02.7]} 14. Rxf2
{[%clk 0:02:45]} 14... Qxe7 {[%clk 0:02:02.5]} 15. d5 {[%clk 0:02:36]} 15... O-O
{[%clk 0:01:52.6]} 16. d6 {[%clk 0:02:35.7]} 16... Qd8 {[%clk 0:01:49.1]} 17.
Rd1 {[%clk 0:02:29.4]} 17... Bd7 {[%clk 0:01:45.6]} 18. c5 {[%clk 0:02:27.3]}
18... f6 {[%clk 0:01:36.5]} 19. Nd4 {[%clk 0:02:25.4]} 19... e5 {[%clk
0:01:30.7]} 20. Nf5 {[%clk 0:02:20.9]} 20... Bxf5 {[%clk 0:01:29]} 21. Qxf5
{[%clk 0:02:21]} 21... b6 {[%clk 0:01:28.1]} 22. d7 {[%clk 0:02:20.2]} 22...
bxc5 {[%clk 0:01:25]} 23. Qe6+ {[%clk 0:02:20.4]} 23... Kh8 {[%clk 0:01:24.4]}
24. Qxc6 {[%clk 0:02:20.2]} 24... Qe7 {[%clk 0:01:21.9]} 25. Rfd2 {[%clk
0:02:18.8]} 25... Rad8 {[%clk 0:01:20.2]} 26. Rd6 {[%clk 0:02:18.3]} 26... f5
{[%clk 0:00:56.1]} 27. Re6 {[%clk 0:02:17.9]} 27... Qf7 {[%clk 0:00:51.9]} 28.
Rxe5 {[%clk 0:02:17.9]} 28... f4 {[%clk 0:00:52]} 29. Rxc5 {[%clk 0:02:14.4]}
29... f3 {[%clk 0:00:49.8]} 30. Qxf3 {[%clk 0:02:12.9]} 30... Qe7 {[%clk
0:00:39.2]} 31. Rf5 {[%clk 0:02:08.8]} 31... Rxf5 {[%clk 0:00:18.3]} 32. Qxf5
{[%clk 0:02:09.7]} 32... h6 {[%clk 0:00:18.9]} 33. h3 {[%clk 0:02:07.3]} 33...
Qe2 {[%clk 0:00:16]} 34. Rd5 {[%clk 0:02:00.8]} 34... Qxb2 {[%clk 0:00:14.5]}
35. Qe6 {[%clk 0:01:51]} 35... Qc1+ {[%clk 0:00:13.2]} 36. Kh2 {[%clk
0:01:45.3]} 36... Qf4+ {[%clk 0:00:12.7]} 37. Kg1 {[%clk 0:01:45.2]} 37... Qc1+
{[%clk 0:00:13.3]} 38. Kf2 {[%clk 0:01:32.2]} 38... Rf8+ {[%clk 0:00:13.2]} 39.
Rf5 {[%clk 0:01:31.9]} 39... Qc2+ {[%clk 0:00:12.9]} 40. Kg3 {[%clk 0:01:30.9]}
40... Qd3+ {[%clk 0:00:12.6]} 41. Rf3 {[%clk 0:01:30.6]} 41... Rxf3+ {[%clk
0:00:09.2]} 42. gxf3 {[%clk 0:01:31.5]} 42... Kh7 {[%clk 0:00:07.7]} 43. Qe4+
{[%clk 0:01:31.3]} 1-0

[Event "*** Titled Tuesday Blitz"]
[Site "Chess.com"]
[Date "2020.10.20"]
[Round "11"]
[White "RobertoJBM"]
[Black "juancruzarias"]
[Result "1-0"]
[WhiteElo "2682"]
[BlackElo "2538"]
[TimeControl "180+1"]
[EndTime "12:07:43 PDT"]
[Termination "RobertoJBM won by resignation"]

1. d4 {[%clk 0:03:00.9]} 1... Nf6 {[%clk 0:02:57.3]} 2. c4 {[%clk 0:03:00.4]}
2... c5 {[%clk 0:02:57.6]} 3. d5 {[%clk 0:03:00.3]} 3... e5 {[%clk 0:02:58.3]}
4. Nc3 {[%clk 0:03:00]} 4... d6 {[%clk 0:02:59]} 5. e4 {[%clk 0:02:59.8]} 5...
Nbd7 {[%clk 0:02:59.6]} 6. g4 {[%clk 0:02:59.2]} 6... h6 {[%clk 0:02:49.1]} 7.
h4 {[%clk 0:02:58.6]} 7... Be7 {[%clk 0:02:48.2]} 8. Be3 {[%clk 0:02:56]} 8...
Nh7 {[%clk 0:02:45.9]} 9. Nf3 {[%clk 0:02:47.2]} 9... Ndf8 {[%clk 0:02:45.7]}
10. g5 {[%clk 0:02:42.9]} 10... Bg4 {[%clk 0:02:34.5]} 11. gxh6 {[%clk
0:02:41.8]} 11... gxh6 {[%clk 0:02:31.7]} 12. Be2 {[%clk 0:02:39.5]} 12... Bxf3
{[%clk 0:01:56.6]} 13. Bxf3 {[%clk 0:02:38.5]} 13... Bxh4 {[%clk 0:01:50.5]} 14.
Bxh6 {[%clk 0:02:20.5]} 14... Nd7 {[%clk 0:00:58.9]} 15. Be3 {[%clk 0:02:15.8]}
15... Bg5 {[%clk 0:00:58.7]} 16. Qd2 {[%clk 0:02:14.2]} 16... Bxe3 {[%clk
0:00:58.3]} 17. Qxe3 {[%clk 0:02:15.1]} 17... Qf6 {[%clk 0:00:58.8]} 18. Nb5
{[%clk 0:02:03]} 18... Ke7 {[%clk 0:00:56.9]} 19. Rh6 {[%clk 0:01:58.7]} 19...
Qg5 {[%clk 0:00:49.1]} 20. Ke2 {[%clk 0:01:35.1]} 20... Qxe3+ {[%clk 0:00:46]}
21. Kxe3 {[%clk 0:01:36]} 21... Nhf6 {[%clk 0:00:40.8]} 22. Rah1 {[%clk
0:01:33.5]} 22... Rxh6 {[%clk 0:00:40.3]} 23. Rxh6 {[%clk 0:01:34.4]} 23... a6
{[%clk 0:00:41.2]} 24. Nc3 {[%clk 0:01:29.2]} 24... b5 {[%clk 0:00:33.5]} 25.
Ne2 {[%clk 0:01:10.9]} 25... Rb8 {[%clk 0:00:33.3]} 26. Ng3 {[%clk 0:01:10.6]}
26... Kd8 {[%clk 0:00:33.8]} 27. Rh8+ {[%clk 0:01:07.5]} 27... Kc7 {[%clk
0:00:34]} 28. Rxb8 {[%clk 0:01:05]} 28... Nxb8 {[%clk 0:00:26.3]} 29. Be2 {[%clk
0:01:05.9]} 29... b4 {[%clk 0:00:23.6]} 30. Nf5 {[%clk 0:01:04.1]} 30... Kd7
{[%clk 0:00:22.3]} 31. f4 {[%clk 0:00:58.2]} 31... exf4+ {[%clk 0:00:21.2]} 32.
Kxf4 {[%clk 0:00:59.1]} 32... a5 {[%clk 0:00:20.3]} 33. Bd1 {[%clk 0:00:57.5]}
33... Kc7 {[%clk 0:00:13.2]} 34. Nh6 {[%clk 0:00:55]} 34... Nbd7 {[%clk
0:00:13.5]} 35. Nxf7 {[%clk 0:00:54.6]} 35... Nh5+ {[%clk 0:00:14.1]} 36. Bxh5
{[%clk 0:00:54]} 1-0

[Event "*** Titled Tuesday Blitz"]
[Site "Chess.com"]
[Date "2020.10.20"]
[Round "11"]
[White "rugbyclub"]
[Black "JoachimMouhamad"]
[Result "1-0"]
[WhiteElo "2200"]
[BlackElo "2276"]
[TimeControl "180+1"]
[EndTime "12:07:43 PDT"]
[Termination "rugbyclub won by checkmate"]

1. c4 {[%clk 0:02:57]} 1... e5 {[%clk 0:02:51.6]} 2. Nc3 {[%clk 0:02:53.9]} 2...
Nf6 {[%clk 0:02:51.1]} 3. Nf3 {[%clk 0:02:53.2]} 3... Nc6 {[%clk 0:02:50.8]} 4.
e3 {[%clk 0:02:52.5]} 4... Bb4 {[%clk 0:02:48.9]} 5. Qc2 {[%clk 0:02:52.5]} 5...
O-O {[%clk 0:02:47.6]} 6. Nd5 {[%clk 0:02:52.4]} 6... Be7 {[%clk 0:02:44.9]} 7.
a3 {[%clk 0:02:48.2]} 7... d6 {[%clk 0:02:44.4]} 8. Nxe7+ {[%clk 0:02:44.1]}
8... Qxe7 {[%clk 0:02:42.6]} 9. b4 {[%clk 0:02:43.6]} 9... Be6 {[%clk
0:02:25.7]} 10. Bb2 {[%clk 0:02:42.1]} 10... Rad8 {[%clk 0:02:20.6]} 11. d4
{[%clk 0:02:41.4]} 11... exd4 {[%clk 0:02:17]} 12. Nxd4 {[%clk 0:02:40.3]} 12...
Nxd4 {[%clk 0:02:16.6]} 13. Bxd4 {[%clk 0:02:40.1]} 13... b6 {[%clk 0:02:12.8]}
14. b5 {[%clk 0:02:06.1]} 14... d5 {[%clk 0:01:58.5]} 15. c5 {[%clk 0:02:04.9]}
15... Ne4 {[%clk 0:01:53.9]} 16. c6 {[%clk 0:02:00.4]} 16... Bf5 {[%clk
0:01:47]} 17. Bd3 {[%clk 0:01:59.3]} 17... Qh4 {[%clk 0:01:35.8]} 18. O-O {[%clk
0:01:58.6]} 18... Rfe8 {[%clk 0:01:32.6]} 19. f3 {[%clk 0:01:57]} 19... Rd6
{[%clk 0:01:15.5]} 20. fxe4 {[%clk 0:01:48.1]} 20... dxe4 {[%clk 0:00:42.6]} 21.
Rxf5 {[%clk 0:01:07.6]} 21... exd3 {[%clk 0:00:39.6]} 22. Qxd3 {[%clk
0:00:51.6]} 22... Rh6 {[%clk 0:00:39.3]} 23. h3 {[%clk 0:00:49.2]} 23... Rg6
{[%clk 0:00:38.9]} 24. Rf3 {[%clk 0:00:44.5]} 24... Qh5 {[%clk 0:00:37.1]} 25.
Raf1 {[%clk 0:00:42]} 25... h6 {[%clk 0:00:37.4]} 26. Qf5 {[%clk 0:00:40.4]}
26... Rg5 {[%clk 0:00:23.1]} 27. Qxf7+ {[%clk 0:00:40]} 27... Qxf7 {[%clk
0:00:23.7]} 28. Rxf7 {[%clk 0:00:39.6]} 28... Rxb5 {[%clk 0:00:24.6]} 29. Rxg7+
{[%clk 0:00:39.1]} 29... Kh8 {[%clk 0:00:24.3]} 30. Rff7 {[%clk 0:00:36.3]}
30... Rb1+ {[%clk 0:00:22.4]} 31. Kh2 {[%clk 0:00:36.1]} 31... h5 {[%clk
0:00:20.5]} 32. Rh7+ {[%clk 0:00:35.5]} 32... Kg8 {[%clk 0:00:20.5]} 33. Rfg7+
{[%clk 0:00:35.4]} 33... Kf8 {[%clk 0:00:20.7]} 34. Rh8# {[%clk 0:00:35.5]} 1-0

[Event "*** Titled Tuesday Blitz"]
[Site "Chess.com"]
[Date "2020.10.20"]
[Round "11"]
[White "RamyresCoelho"]
[Black "nitpicker"]
[Result "1-0"]
[WhiteElo "2067"]
[BlackElo "2248"]
[TimeControl "180+1"]
[EndTime "12:07:47 PDT"]
[Termination "RamyresCoelho won on time"]

1. e4 {[%clk 0:03:00]} 1... d5 {[%clk 0:02:59.1]} 2. exd5 {[%clk 0:02:57.6]}
2... Qxd5 {[%clk 0:02:59.1]} 3. Nc3 {[%clk 0:02:55.5]} 3... Qd8 {[%clk 0:02:59]}
4. Bc4 {[%clk 0:02:52.4]} 4... Nf6 {[%clk 0:02:55.5]} 5. Nf3 {[%clk 0:02:52.2]}
5... a6 {[%clk 0:02:43.2]} 6. Ne5 {[%clk 0:02:51.9]} 6... e6 {[%clk 0:02:42.6]}
7. a4 {[%clk 0:02:52]} 7... Nbd7 {[%clk 0:02:29.5]} 8. Nxd7 {[%clk 0:02:49.5]}
8... Bxd7 {[%clk 0:02:27.4]} 9. O-O {[%clk 0:02:49.1]} 9... Bd6 {[%clk
0:02:23.4]} 10. d4 {[%clk 0:02:44.4]} 10... Bc6 {[%clk 0:02:22.8]} 11. Bg5
{[%clk 0:02:34.9]} 11... O-O {[%clk 0:01:58.6]} 12. d5 {[%clk 0:02:27.5]} 12...
exd5 {[%clk 0:01:57.7]} 13. Nxd5 {[%clk 0:02:26.1]} 13... Bxd5 {[%clk
0:01:55.6]} 14. Bxd5 {[%clk 0:02:25.7]} 14... c6 {[%clk 0:01:52.5]} 15. Bf3
{[%clk 0:02:21.1]} 15... h6 {[%clk 0:01:52.6]} 16. Bxf6 {[%clk 0:02:15.8]} 16...
Qxf6 {[%clk 0:01:51.7]} 17. c3 {[%clk 0:02:08.3]} 17... Rad8 {[%clk 0:01:50.9]}
18. Qd4 {[%clk 0:02:01.7]} 18... Bxh2+ {[%clk 0:01:46]} 19. Kxh2 {[%clk
0:02:01.6]} 19... Rxd4 {[%clk 0:01:45.9]} 20. cxd4 {[%clk 0:02:02.5]} 20... Qxd4
{[%clk 0:01:45.9]} 21. g3 {[%clk 0:01:58.4]} 21... Qf6 {[%clk 0:01:36]} 22. Kg2
{[%clk 0:01:56.8]} 22... Rd8 {[%clk 0:01:28.9]} 23. b4 {[%clk 0:01:56.2]} 23...
Rd3 {[%clk 0:01:20]} 24. Be2 {[%clk 0:01:55.5]} 24... Rd2 {[%clk 0:01:15.6]} 25.
Bf3 {[%clk 0:01:54]} 25... Rb2 {[%clk 0:01:13.7]} 26. b5 {[%clk 0:01:53.6]}
26... axb5 {[%clk 0:01:06.1]} 27. axb5 {[%clk 0:01:54.5]} 27... Rxb5 {[%clk
0:01:04.9]} 28. Be4 {[%clk 0:01:53.8]} 28... g6 {[%clk 0:01:04.6]} 29. Ra8+
{[%clk 0:01:53.1]} 29... Kg7 {[%clk 0:01:04.2]} 30. Rd1 {[%clk 0:01:53.4]} 30...
Rb2 {[%clk 0:01:01.7]} 31. Bf3 {[%clk 0:01:53]} 31... g5 {[%clk 0:00:58.4]} 32.
Rdd8 {[%clk 0:01:49.6]} 32... Kh7 {[%clk 0:00:46.4]} 33. Be4+ {[%clk 0:01:46.6]}
33... Qg6 {[%clk 0:00:44.7]} 34. Rh8+ {[%clk 0:01:41.9]} 34... Kg7 {[%clk
0:00:44.4]} 35. Rhg8+ {[%clk 0:01:39.7]} 35... Kf6 {[%clk 0:00:44.5]} 36. Bxg6
{[%clk 0:01:39.9]} 36... fxg6 {[%clk 0:00:44.8]} 37. Raf8+ {[%clk 0:01:39.2]}
37... Ke5 {[%clk 0:00:44.2]} 38. Rxg6 {[%clk 0:01:38.9]} 38... c5 {[%clk
0:00:44.1]} 39. Rxh6 {[%clk 0:01:35.9]} 39... b5 {[%clk 0:00:43.2]} 40. Re8+
{[%clk 0:01:36.8]} 40... Kd4 {[%clk 0:00:43]} 41. Rd6+ {[%clk 0:01:35.7]} 41...
Kc3 {[%clk 0:00:41.7]} 42. Re5 {[%clk 0:01:35.3]} 42... c4 {[%clk 0:00:41]} 43.
Rxg5 {[%clk 0:01:34.9]} 43... b4 {[%clk 0:00:40.9]} 44. Rc5 {[%clk 0:01:35]}
44... Rc2 {[%clk 0:00:38.6]} 45. g4 {[%clk 0:01:32.2]} 45... b3 {[%clk 0:00:37]}
46. g5 {[%clk 0:01:29.2]} 46... b2 {[%clk 0:00:36.7]} 47. Rb5 {[%clk 0:01:28.8]}
47... Rc1 {[%clk 0:00:35.4]} 48. Rdb6 {[%clk 0:01:28.3]} 1-0

[Event "*** Titled Tuesday Blitz"]
[Site "Chess.com"]
[Date "2020.10.20"]
[Round "11"]
[White "aloe_normansen"]
[Black "djano"]
[Result "0-1"]
[WhiteElo "2352"]
[BlackElo "2453"]
[TimeControl "180+1"]
[EndTime "12:07:48 PDT"]
[Termination "djano won by resignation"]

1. e4 {[%clk 0:03:00.9]} 1... g6 {[%clk 0:02:59.6]} 2. d4 {[%clk 0:03:00.3]}
2... Bg7 {[%clk 0:02:59.8]} 3. Nc3 {[%clk 0:02:58.6]} 3... a6 {[%clk 0:02:59.2]}
4. Nf3 {[%clk 0:02:51.1]} 4... b5 {[%clk 0:02:59.3]} 5. Bd3 {[%clk 0:02:34.8]}
5... Bb7 {[%clk 0:02:59.3]} 6. O-O {[%clk 0:02:33.7]} 6... e6 {[%clk 0:02:54.2]}
7. a3 {[%clk 0:02:29.8]} 7... Ne7 {[%clk 0:02:51]} 8. Bf4 {[%clk 0:02:29.1]}
8... d6 {[%clk 0:02:50.3]} 9. Re1 {[%clk 0:02:23.1]} 9... Nd7 {[%clk 0:02:49.7]}
10. Qd2 {[%clk 0:02:16.9]} 10... h6 {[%clk 0:02:49.8]} 11. Ne2 {[%clk
0:02:07.4]} 11... e5 {[%clk 0:02:45.7]} 12. Bg3 {[%clk 0:02:04.2]} 12... O-O
{[%clk 0:02:43]} 13. Rad1 {[%clk 0:01:55.6]} 13... f5 {[%clk 0:02:37.5]} 14.
dxe5 {[%clk 0:01:29.6]} 14... fxe4 {[%clk 0:02:20.4]} 15. exd6 {[%clk
0:01:22.1]} 15... cxd6 {[%clk 0:01:56.8]} 16. Ned4 {[%clk 0:01:17.4]} 16... Nc5
{[%clk 0:01:48.9]} 17. b4 {[%clk 0:01:10.1]} 17... Nxd3 {[%clk 0:01:48.5]} 18.
cxd3 {[%clk 0:01:07.4]} 18... exf3 {[%clk 0:01:43.8]} 19. Ne6 {[%clk 0:01:05.5]}
19... Qd7 {[%clk 0:01:40.8]} 20. Nxf8 {[%clk 0:01:04.6]} 20... Rxf8 {[%clk
0:01:35.2]} 21. Rc1 {[%clk 0:00:38.8]} 21... Nf5 {[%clk 0:01:31.6]} 22. Qa2+
{[%clk 0:00:31.9]} 22... Kh8 {[%clk 0:01:29]} 23. Rc2 {[%clk 0:00:31.8]} 23...
fxg2 {[%clk 0:01:25.4]} 24. Rec1 {[%clk 0:00:20.9]} 24... Nd4 {[%clk 0:01:11.3]}
25. Rc7 {[%clk 0:00:17]} 25... Qh3 {[%clk 0:01:10.5]} 26. f4 {[%clk 0:00:12.9]}
26... Nf3+ {[%clk 0:01:07.5]} 27. Kf2 {[%clk 0:00:13.1]} 27... Bd4+ {[%clk
0:00:59.5]} 28. Ke2 {[%clk 0:00:13.3]} 28... Re8+ {[%clk 0:00:54.9]} 29. Kd1
{[%clk 0:00:09.2]} 29... g1=Q+ {[%clk 0:00:54.8]} 30. Kc2 {[%clk 0:00:09.7]}
30... Qhg2+ {[%clk 0:00:50]} 0-1

[Event "*** Titled Tuesday Blitz"]
[Site "Chess.com"]
[Date "2020.10.20"]
[Round "11"]
[White "bakki78"]
[Black "Bigfish1995"]
[Result "1-0"]
[WhiteElo "2749"]
[BlackElo "3018"]
[TimeControl "180+1"]
[EndTime "12:07:51 PDT"]
[Termination "bakki78 won on time"]

1. e4 {[%clk 0:03:00.9]} 1... c6 {[%clk 0:01:45.2]} 2. d4 {[%clk 0:02:59.7]}
2... d5 {[%clk 0:01:45.2]} 3. e5 {[%clk 0:03:00]} 3... Bf5 {[%clk 0:01:44.7]} 4.
Nf3 {[%clk 0:02:59.9]} 4... e6 {[%clk 0:01:44.8]} 5. Be2 {[%clk 0:03:00]} 5...
h6 {[%clk 0:01:40.9]} 6. O-O {[%clk 0:02:59]} 6... Nd7 {[%clk 0:01:38.2]} 7. c3
{[%clk 0:02:58.2]} 7... a5 {[%clk 0:01:36.7]} 8. a4 {[%clk 0:02:56.9]} 8... Ne7
{[%clk 0:01:35.5]} 9. Na3 {[%clk 0:02:56.4]} 9... g5 {[%clk 0:01:30.3]} 10. Nc2
{[%clk 0:02:54.2]} 10... Bg7 {[%clk 0:01:30.3]} 11. Nfe1 {[%clk 0:02:48.3]}
11... f6 {[%clk 0:01:29.1]} 12. Bh5+ {[%clk 0:02:47.5]} 12... Kf8 {[%clk
0:01:24]} 13. f4 {[%clk 0:02:47.5]} 13... gxf4 {[%clk 0:01:23.3]} 14. Bxf4
{[%clk 0:02:45.8]} 14... fxe5 {[%clk 0:01:21.7]} 15. dxe5 {[%clk 0:02:44.5]}
15... Kg8 {[%clk 0:01:19.8]} 16. Nd4 {[%clk 0:02:25.5]} 16... Nxe5 {[%clk
0:01:11.6]} 17. Qe2 {[%clk 0:02:25.1]} 17... N7g6 {[%clk 0:00:59.1]} 18. Bg3
{[%clk 0:02:18.5]} 18... Qg5 {[%clk 0:00:46.4]} 19. Bxg6 {[%clk 0:02:00.1]}
19... Nxg6 {[%clk 0:00:39.7]} 20. Nxe6 {[%clk 0:01:58.9]} 20... Bxe6 {[%clk
0:00:28]} 21. Qxe6+ {[%clk 0:01:58.2]} 21... Kh7 {[%clk 0:00:28.6]} 22. Rf7
{[%clk 0:01:54.7]} 22... Rhe8 {[%clk 0:00:26.2]} 23. Qd7 {[%clk 0:01:48]} 23...
Re7 {[%clk 0:00:19.8]} 24. Rxe7 {[%clk 0:01:44.9]} 24... Qxe7 {[%clk 0:00:20.7]}
25. Qxe7 {[%clk 0:01:37.7]} 25... Nxe7 {[%clk 0:00:21.6]} 26. Nd3 {[%clk
0:01:37.8]} 26... Nf5 {[%clk 0:00:21.8]} 27. Bf2 {[%clk 0:01:37.5]} 27... Nd6
{[%clk 0:00:20.1]} 28. Nc5 {[%clk 0:01:22.9]} 28... b6 {[%clk 0:00:05.8]} 29.
Nd7 {[%clk 0:01:21.5]} 29... b5 {[%clk 0:00:06.2]} 30. axb5 {[%clk 0:01:21]}
30... Nxb5 {[%clk 0:00:06]} 31. Nc5 {[%clk 0:01:16.7]} 31... Nd6 {[%clk
0:00:04.9]} 32. Ne6 {[%clk 0:01:14.7]} 32... Bf6 {[%clk 0:00:03.1]} 33. Bd4
{[%clk 0:01:02.9]} 33... Bxd4+ {[%clk 0:00:03.2]} 34. Nxd4 {[%clk 0:01:03.6]}
34... Ra6 {[%clk 0:00:03.8]} 35. Kf2 {[%clk 0:00:59.2]} 35... a4 {[%clk
0:00:01.6]} 36. Ke2 {[%clk 0:00:57.2]} 1-0